Cogmind - Beta 14 @@@ ROGUE MODE // 2024.09.02 @ 00:33:26 Player: CanadianCogs Result: Destroyed by G-34 Mercenary with Small Laser Performance ------------- Evolutions (0) 0 Regions Visited (1) 200 Robots Destroyed (15) 75 Value Destroyed (312) 312 Prototype IDs (0) 0 Alien Tech Used (0) 0 Bonus (0) 0 TOTAL SCORE: 587 Bonus ------- None Cogmind --------- Core Integrity 0/250 Matter 285/300 Energy 85/100 System Corruption 0% Temperature Warm (125) Movement Core (100) Ox1 Location -10/Materials Parts ------- > --- POWER (1) -------- (None) > --- PROPULSION (2) --- (None) > --- UTILITY (2) ------ Small Storage Unit > --- WEAPON (2) ------- Mining Laser > --- INVENTORY (8) ---- Wheel Wheel Compact Wheel Heat Sink Peak State ------------ > --- POWER ------------ Ion Engine > --- PROPULSION ------- Compact Wheel Compact Wheel > --- UTILITY ---------- Small Storage Unit Seismic Detector > --- WEAPON ----------- Medium Laser Light Assault Rifle > --- INVENTORY -------- Wheel Wheel [Rating: 7] Favorites ----------- Power Ion Engine Engine Ion Engine Propulsion Hover Unit Wheel Compact Wheel Hover Unit Hover Unit Utility Small Storage Unit Device Seismic Detector Storage Small Storage Unit Weapon Medium Laser Energy Gun Medium Laser Ballistic Gun Light Assault Rifle Special Weapon Mining Laser Build | -11 -10 ------- Run | Yrd Mat Slots Evolved . | . . Power . | . . Propulsion . | . . Utility . | . . Weapon . | . . Parts Attached 12 | 7 5 Power 1 | 1 . Engine 1 | 1 . Core . | . . Reactor . | . . Propulsion 4 | 2 2 Treads . | . . Leg . | . . Wheel 2 | 2 . Hover 2 | . 2 Flight . | . . Utility 2 | 2 . Device 1 | 1 . Storage 1 | 1 . Processor . | . . Hackware . | . . Protection . | . . Artifact . | . . Weapon 5 | 2 3 Energy Gun 1 | 1 . Energy Cannon . | . . Ballistic Gun 1 | 1 . Ballistic Cannon . | . . Launcher . | . . Special Weapon 3 | . 3 Impact Weapon . | . . Slashing Weapon . | . . Piercing Weapon . | . . Special Melee Weapon . | . . Unidentified Prototypes . | . . Parts Lost 8 | . 8 Power 1 | . 1 Propulsion 2 | . 2 Utility 1 | . 1 Weapon 4 | . 4 Highest Loss Streak 8 | . 8 To Critical Strikes . | . . Average Slot Usage (%) 97 | . 97 Engine 13 | . 13 Wheel 7 | . 7 Hover 18 | . 18 Device 13 | . 13 Storage 14 | . 14 Energy Gun 13 | . 13 Ballistic Gun 13 | . 13 Peak Build Rating 7 | 7 7 Average Rating 6 | 4 6 On Entrance 3 | . 7 Naked Turns . | . . Heaviest Build 14 | 14 14 Greatest Support 32 | 32 32 Greatest Overweight (x) 1 | . 1 Average Overweight (x) . | . . Largest Inventory Capacity 8 | 8 8 Average Capacity 7 | 7 8 Most Carried 8 | 3 8 Average Carried 5 | . 6 Final Capacity 8 | 8 8 Final Carried 4 | 2 4 Class Distribution -------------------- 100% | Mutant Dominant Class ---------------- Mutant | -10/Materials Resources | -11 -10 ----------- Run | Yrd Mat Matter Collected 319 | 254 65 Remotely . | . . Salvage Created 433 | 86 347 Parts 33 | 8 25 Haulers Intercepted . | . . Recyclers Shooed 1 | . 1 Parts Field Recycled . | . . Retrieved Matter . | . . Parts Self-Destructed . | . . Prevented . | . . Kills | -11 -10 ------- Run | Yrd Mat Combat Hostiles Destroyed 10 | . 10 Guns 10 | . 10 Classes Destroyed 4 | 1 3 Tunneler 4 | 4 . Watcher 1 | . 1 Swarmer 3 | . 3 Grunt 7 | . 7 Best Kill Streak 4 | 4 4 Combat Bots Only 4 | . 4 Max Kills in Single Turn 1 | 1 1 Gunslinging . | . . Exploded . | . . Melee . | . . Uniques/NPCs Destroyed . | . . Combat | -11 -10 -------- Run | Yrd Mat Hostile Shots Fired 80 | . 80 Missed 15 | . 15 Damage Taken 694 | . 694 Core 257 | . 257 Absorbed by Shields . | . . Core Remaining (%) 100 | 100 . Volleys Fired 42 | 11 31 Largest 2 | 2 2 Hottest 70 | 70 70 Shots Fired 83 | 22 61 Gun 83 | 22 61 Cannon . | . . Launcher . | . . Special . | . . Kinetic 41 | 11 30 Thermal 42 | 11 31 Explosive . | . . Electromagnetic . | . . Robot Hit Streak 6 | 3 6 Robot Miss Streak 3 | 3 3 Penetration Max . | . . Secondary Targets 1 | . 1 Max Gunslinging Chain 1 | . 1 Shots Hit Robots 51 | 12 39 Core Hits 27 | 6 21 Critical Kills . | . . Critical Parts Destroyed . | . . Critical Strikes . | . . Melee Attacks . | . . Impact . | . . Slashing . | . . Piercing . | . . Sneak Attacks . | . . Combat Hostiles . | . . Follow-up Attacks . | . . Damage Inflicted 569 | 126 443 Guns 569 | 126 443 Cannons . | . . Explosions . | . . Melee . | . . Ramming . | . . Kinetic 204 | 39 165 Thermal 365 | 87 278 Explosive . | . . Electromagnetic . | . . Impact . | . . Slashing . | . . Piercing . | . . Highest Corruption . | . . Average Corruption . | . . Corruption Purged . | . . Corruption Blocked . | . . Overload Shots . | . . Overflow Damage . | . . Projectiles . | . . Explosions . | . . Melee . | . . Knockbacks . | . . Impact . | . . Kinetic . | . . Secondary . | . . Self-Inflicted Damage . | . . Shots . | . . Rammed . | . . Targets Rammed . | . . Kicked . | . . Crushed . | . . Highest Temperature 286 | 100 286 Average Temperature 80 | 48 90 Received Heat Transfer 336 | . 336 Effects 4 | . 4 Energy Bleed 1 | . 1 Interference 3 | . 3 Siege Activations . | . . Robots Corrupted . | . . Combat Hostiles . | . . Parts Fried . | . . Impact Corruptions . | . . Robots Melted . | . . Combat Hostiles . | . . Parts Melted 1 | . 1 Heat Transferred 1073 | 259 814 Parts Sabotaged . | . . Parts Stolen . | . . Parts Stripped . | . . Power Chain Reactions . | . . Alert | -11 -10 ------- Run | Yrd Mat Peak Influence 276 | 20 276 Initial 13 | . 13 Average 109 | 6 136 Maximum Alert Level 1 | . 1 Low Security (%) 81 | 100 76 Level 1 18 | . 23 Level 2 . | . . Level 3 . | . . Level 4 . | . . Level 5 . | . . High Security . | . . Max Security . | . . Squads Dispatched 6 | . 6 Investigation 5 | . 5 Extermination . | . . Reinforcement 1 | . 1 Assault . | . . Garrison . | . . Intercept . | . . Searches Triggered . | . . Construction Impeded . | . . Haulers Reinforced . | . . Active Scanning Responses . | . . Cargo Convoy Interrupts . | . . Stealth | -11 -10 --------- Run | Yrd Mat Distress Signals . | . . Communications Jammed . | . . Distress Signals . | . . Times Spotted 20 | . 20 Peak Tracking Total 7 | . 7 Tactical Retreats 3 | . 3 Traps | -11 -10 ------- Run | Yrd Mat Traps Triggered 2 | . 2 Indirectly . | . . Trap Hack Attempts . | . . Triggered . | . . Disarmed . | . . Reprogrammed . | . . Reused . | . . Traps Extracted . | . . Installed . | . . Triggered . | . . Machines | -11 -10 ---------- Run | Yrd Mat Machines Disabled . | . . Max in Single Turn . | . . Machines Repaired . | . . Machines Dismantled . | . . Machines Sabotaged . | . . Overloaded Fab Kills . | . . Hacking | -11 -10 --------- Run | Yrd Mat Machines Accessed 4 | . 4 Terminals 4 | . 4 Fabricators . | . . Repair Stations . | . . Recycling Units . | . . Scanalyzers . | . . Garrison Access . | . . Total Hacks 13 | . 13 Successful 8 | . 8 Failed 4 | . 4 Catastrophic 1 | . 1 Database Lockouts 1 | . 1 Manual 10 | . 10 Terminals 13 | . 13 Fabricators . | . . Repair Stations . | . . Recycling Units . | . . Scanalyzers . | . . Garrison Access . | . . Terminal Hacks 3 | . 3 Robot Analysis 1 | . 1 Dispatch Records 1 | . 1 Zone Layout 1 | . 1 Fabricator Hacks . | . . Repair Station Hacks . | . . Recycling Unit Hacks . | . . Scanalyzer . | . . Garrison Access Hacks . | . . Unauthorized Hacks 5 | . 5 Terminals 5 | . 5 Botnet 4 | . 4 Search 1 | . 1 Fabricators . | . . Repair Stations . | . . Recycling Units . | . . Scanalyzers . | . . Garrison Access . | . . Data Cores Recovered . | . . Used . | . . Hacking Detections 3 | . 3 Full Trace Events 3 | . 3 Feedback Events . | . . Feedback Blocked . | . . Robot Schematics Acquired . | . . Robots Built . | . . Authchips . | . . Time . | . . Total Robot Build Rating . | . . Part Schematics Acquired . | . . Parts Built . | . . Authchips . | . . Time . | . . Total Part Build Rating . | . . Parts Repaired . | . . Time . | . . Parts Recycled . | . . Recycled Matter . | . . Retrieved Matter . | . . Retrieved Components . | . . Parts Scanalyzed . | . . Part Schematics Acquired . | . . Parts Damaged . | . . Bothacking | -11 -10 ------------ Run | Yrd Mat Used RIF Installer . | . . Robots Hacked . | . . Non-combat . | . . Combat . | . . Robot Hacks Applied . | . . Relay Couplers Released . | . . Fabnet Peak Effective % . | . . Robots Rewired . | . . Allies Hacked . | . . Hacks Repelled . | . . Allies | -11 -10 -------- Run | Yrd Mat Total Allies . | . . Largest Group . | . . Highest-Rated Group . | . . Highest-Rated Ally . | . . Total Orders . | . . Ally Attacks . | . . Total Damage . | . . Kills . | . . Allies Corrupted . | . . Allies Melted . | . . Intel | -11 -10 ------- Run | Yrd Mat Robot Analysis Total 1 | . 1 Derelict Logs Recovered . | . . Drone Launches . | . . Drone Recoveries . | . . Exploration | -11 -10 ------------- Run | Yrd Mat Turns Passed 554 | 113 441 Spaces Moved 285 | 65 220 Core 7 | 7 . Treads . | . . Legs . | . . Wheels 138 | 58 80 Hover 140 | . 140 Flight . | . . Fastest Speed 50 | 50 100 Average Speed 106 | 94 110 Slowest Speed 116 | 100 116 Overloaded Moves . | . . Propulsion Burnouts . | . . Robots Hopped . | . . Cave-ins Triggered . | . . Exploration Rate (%) 22 | 5 40 Regions Visited 1 Branch Regions . Pre-discovered Areas . | . . Known Exits Taken . | . . Unknown Exits Taken 1 | 1 . Scrap Searched . | . . Spaces Dug . | . . Terrain Destroyed . | . . Melee . | . . Projectile . | . . AOE . | . . Terrain Rammed . | . . Walls Destroyed . | . . Machines Disabled . | . . Actions | -11 -10 --------- Run | Yrd Mat Total 462 | 98 364 Wait 98 | . 98 Move 284 | 64 220 Hop . | . . Pick Up 19 | 12 7 Fast Attach 2 | 1 1 Attach 9 | 6 3 Detach . | . . Swap 1 | . 1 Drop 7 | 4 3 Fire 42 | 11 31 Melee . | . . Ram . | . . Kick . | . . Crush . | . . Escape Stasis . | . . Rewire . | . . Trap . | . . Miscellaneous . | . . Route ------- -11/Scrapyard -10/Materials (discovered 1 exit: [*Mat]) History --------- Turn | Location | Event 6 | -11/Scrapyard | Discovered new exit (range 16) 114 | -11/Scrapyard | Entered Materials 192 | -10/Materials | Discovered new exit (range 10) 200 | -10/Materials | Central database locked down 301 | -10/Materials | Build established: Mutant 537 | -10/Materials | Core integrity fell below 50% 549 | -10/Materials | Core integrity fell below 20% 555 | -10/Materials | Destroyed by G-34 Mercenary with Small Laser Last Messages --------------- 00526_ Flight Unit melted. 00526_ S-10 Pest destroyed. 00534_ G-34 Mercenary destroyed. 00535_ Hover Unit destroyed. 00539_ Overheating: Energy bleed (-55). 00541_ Overheating: System interference. 00541_ Lgt. Assault Rifle temporarily disabled. 00541_ Lgt. Assault Rifle destroyed. 00542_ K-01 Serf collects debris. 00542_ Ion Engine destroyed. 00543_ Med. Laser destroyed. 00545_ Overheating: System interference. 00545_ Seismic Detector temporarily disabled. 00545_ Mining Laser temporarily disabled. 00546_ K-01 Serf collects debris. 00547_ Seismic Detector destroyed. 00548_ K-01 Serf collects debris. 00551_ Mining Laser destroyed. 00552_ K-01 Serf collects debris. 00553_ Mining Laser destroyed. Map ----- +----------------------------------------------------+ | ??????????# ## ######## | | ??????????################ # # | | ???????????????########### #""" # | | ???????????????# # #""" # | | ???????????????# """"" # #""" # | | ???????????????# ""T"" # #""" # | | ???????????????# + #""" # | | ???????????????# """ """ # / # | | #########??????# """ """ # #""" # | | #??????# """ """ # #""" # | | " #??????? # #""" # | | " """ #???????########## #""" # | | T """ #???#######??????# #""" # | | " """ ##### #??????# # # | | " *+% + #??????# ###+#### | | ##### #??????# #?# #??? | | ! #???# """ #"?????# #?# #??? | | #######"#???# """ # ????# #?# #??? | | #???# """ ###+#### ###+#### | | #???# """ # # == # | | % #???# """ # # == # | | #???# + # == # | | #???# # """ + # | | #???# # """ # # | | ####???# ### """kg# "T" # | | #??????######### =g@g* ######## | | ##+#+###????# # *=g= #??????? | | # #????# """ # """ #??????? | | # #????# """ # """ #??????? | | # """" #????# """ # """ #??????? | | # """" #????# =# #??????? | | # """" #????# *%+ #??????? | | # #????# %# ! #??????? | | ########????# " " ##"T"# < #??????? | | ????????????# "R" ###### #??????? | | ????????????# """ = #????#####??????? | | ????????????# #???????????????? | | ????????????#########???????????????? | | ????????????????????????????????????? | | ????????????????????????????????????? | | ????????????????????????????????????? | | ????????????????????????????????????? | | ????????????????????????????????????? | | | | | | | | | | | | | | | +----------------------------------------------------+ Best States ------------- Heat Dissipation 25 Energy Generation 10 Energy Capacity 250 Matter Stores 300 Matter Capacity 300 Sight Range 16 Terrain Scan Density 10 Evasion (%) 40 Item Schematics ----------------- None Robot Schematics ------------------ None Fabricated ------------ Nothing Alien Tech Used ----------------- None Achievements -------------- None Challenges ------------ None Game ------ Seed MachineTeleporterStreamer Manual? 0 Play Time 00:12:28 Cumulative 54.2 hours Start 2024.09.02 @ 00:18:41 End 2024.09.02 @ 00:33:26 Sessions 1 Manual Loads 0 Difficulty Rogue Special Mode None Game No. 91 Rogue 91 Adventurer 0 Explorer 0 Win Type - Total 0 Types 0/0/0/0/0/0/0/0/0 Lore% 18 Gallery% 33 Achievement% 31 Wizard Run 0 Options --------- Layout 0 ASCII 0 Keyboard 0 Movement Mouse Keybinds 0 Fullscreen 2 Font 18/SmallcapsGlow Map View 38x25 Zoom Use 95% Tactical HUD 1 Map Filters NONE Filters NONE Steam 1 RUN: f7b64f0b-595b-440a-8a5a-7fd9de7d788b